lending/lending_fUSD_20250706
["ID","MTS","AMOUNT","RATE_DAILY","PERIOD"]
[370017850,1751836232311,-49.2273777,0.0001877,2]
[370017851,1751836232321,-318.279982,0.00018794,2]
[370017852,1751836232332,-167.26,0.00019016,2]
[370017853,1751836232343,-181.69,0.0001904,2]
[370017855,1751836232353,-342.05912293,0.00019068,2]
[370017857,1751836232364,-1098.886,0.00019069,2]
[370017859,1751836232374,-550.45894238,0.00019078,2]
[370017861,1751836232384,-62.05957635,0.00019078,2]
[370017866,1751836232662,531.14,0.00030136,120]
[370017873,1751836233560,460.0,0.00030136,120]
[370017874,1751836233966,2886.27,0.00030136,120]
[370017875,1751836234013,460.0,0.00030136,120]
[370017876,1751836234867,460.0,0.00030136,120]
[370017877,1751836236954,460.0,0.00030136,120]
[370017878,1751836237079,460.0,0.00030136,120]
[370017880,1751836238222,-413.4314058,0.00019078,2]
[370017881,1751836238280,-3180.37797729,0.00019078,2]
[370017883,1751836238290,-2327.62202271,0.00019078,2]
[370017980,1751836239513,460.0,0.00030136,120]
[370018081,1751836240529,659.01,0.00030136,120]
[370018138,1751836241112,1267.62,0.00030136,120]
[370018150,1751836241227,757.42,0.00030136,120]
[370018169,1751836241403,460.0,0.00030136,120]
[370018183,1751836241535,1235.46,0.00030136,120]
[370018309,1751836242753,460.0,0.00030136,120]
[370018402,1751836243696,670.66,0.00030136,120]
[370018411,1751836243879,460.0,0.00030136,120]
[370018457,1751836244303,460.0,0.00030136,120]
[370018489,1751836244603,460.0,0.00030136,120]
[370018524,1751836244949,1239.71,0.00030136,120]
[370018531,1751836245039,7780.82,0.00030136,120]
[370018606,1751836246347,460.0,0.00030136,120]
[370018612,1751836246394,460.0,0.00030136,120]
[370018618,1751836246443,483.69,0.00030136,120]
[370018643,1751836248931,682.6,0.00030136,120]
[370018644,1751836249159,1235.3,0.00030136,120]
[370018645,1751836249362,460.0,0.00030136,120]
[370018647,1751836252614,2860.8,0.00030136,120]
[370018648,1751836253072,460.0,0.00030136,120]
[370018649,1751836253413,4202.99,0.00030136,120]
[370018650,1751836254717,460.0,0.00030136,120]
[370018651,1751836255370,695.58,0.00030136,120]
[370018652,1751836256023,1149.54,0.00030136,120]
[370018653,1751836256803,490.19,0.00030136,120]
[370018654,1751836257268,843.47,0.00030136,120]
[370018655,1751836258321,460.0,0.00030136,120]
[370018656,1751836260844,519.86,0.00030136,120]
[370018657,1751836260974,1799.27,0.00030136,120]
[370018658,1751836261047,593.14,0.00030136,120]
[370018659,1751836264755,647.37,0.00030136,120]
[370018660,1751836265082,567.78,0.00030136,120]
[370018661,1751836265409,460.0,0.00030136,120]
[370018662,1751836266350,1069.7,0.00030136,120]
[370018663,1751836267125,460.0,0.00030136,120]
[370018664,1751836267234,460.0,0.00030136,120]
[370018665,1751836267280,460.0,0.00030136,120]
[370018666,1751836268344,460.0,0.00030136,120]
[370018667,1751836268416,601.09,0.00030136,120]
[370018668,1751836268450,596.62,0.00030136,120]
[370018669,1751836268529,490.0,0.00030136,120]
[370018670,1751836268755,460.0,0.00030136,120]
[370018671,1751836270794,459.999999,0.00030136,120]
[370018672,1751836270835,2397.5,0.00030136,120]
[370018673,1751836271244,1461.22,0.00030136,120]
[370018674,1751836271698,460.0,0.00030136,120]
[370018675,1751836271885,721.45,0.00030136,120]
[370018676,1751836272544,460.0,0.00030136,120]
[370018677,1751836272972,511.71,0.00030136,120]
[370018678,1751836273019,460.0,0.00030136,120]
[370018679,1751836274038,460.0,0.00030136,120]
[370018680,1751836276131,460.0,0.00030136,120]
[370018681,1751836276536,460.0,0.00030136,120]
[370018682,1751836277586,1186.51,0.00030136,120]
[370018683,1751836278350,460.0,0.00030136,120]
[370018684,1751836278428,493.75,0.00030136,120]
[370018685,1751836279496,812.41,0.00030136,120]
[370018686,1751836281074,582.74,0.00030136,120]
[370018687,1751836281545,460.0,0.00030136,120]
[370018688,1751836282513,650.55,0.00030136,120]
[370018689,1751836282694,460.0,0.00030136,120]
[370018690,1751836283302,490.0,0.00030136,120]
[370018691,1751836285594,500.3,0.00030136,120]
[370018692,1751836286221,1139.49,0.00030136,120]
[370018693,1751836288659,1599.43,0.00030136,120]
[370018694,1751836288696,626.32,0.00030136,120]
[370018695,1751836288726,460.0,0.00030136,120]
[370018696,1751836288926,530.37,0.00030136,120]
[370018697,1751836290382,628.84,0.00030136,120]
[370018699,1751836291006,460.0,0.00030136,120]
[370018700,1751836291037,490.0,0.00030136,120]
[370018701,1751836292673,460.0,0.00030136,120]
[370018702,1751836293633,460.0,0.00030136,120]
[370018703,1751836294026,2008.23,0.00030136,120]
[370018704,1751836294347,771.69,0.00030136,120]
[370018705,1751836294509,460.0,0.00030136,120]
[370018706,1751836295620,1059.49,0.00030136,120]
[370018707,1751836296021,817.75,0.00030136,120]
[370018708,1751836296084,460.0,0.00030136,120]
[370018709,1751836298555,818.87,0.00030136,120]
[370018710,1751836299214,481.8143889,0.00030136,120]
[370018711,1751836299491,177.18188192,0.00030136,120]
[370018712,1751836300423,798.86,0.00030136,120]
[370018714,1751836300871,460.0,0.00030136,120]
[370018715,1751836301157,460.0,0.00030136,120]
[370018716,1751836301822,566.04,0.00030136,120]
[370018717,1751836302555,601.34,0.00030136,120]
[370018718,1751836303146,460.0,0.00030136,120]
[370018719,1751836303280,983.67,0.00030136,120]
[370018720,1751836303691,460.0,0.00030136,120]
[370018721,1751836304329,460.0,0.00030136,120]
[370018722,1751836305033,573.79,0.00030136,120]
[370018723,1751836306330,550.67,0.00030136,120]
[370018724,1751836307034,786.4,0.00030136,120]
[370018725,1751836308322,682.39,0.00030136,120]
[370018726,1751836308464,460.0,0.00030136,120]
[370018727,1751836309768,460.0,0.00030136,120]
[370018728,1751836310196,460.0,0.00030136,120]
[370018729,1751836310574,460.0,0.00030136,120]
[370018730,1751836312241,530.82,0.00030136,120]
[370018731,1751836312453,905.82,0.00030136,120]
[370018732,1751836312583,460.0,0.00030136,120]
[370018733,1751836313181,460.0,0.00030136,120]
[370018734,1751836315037,460.0,0.00030136,120]
[370018735,1751836315077,745.0,0.00030136,120]
[370018736,1751836315189,460.0,0.00030136,120]
[370018737,1751836315444,1269.07,0.00030136,120]
[370018738,1751836315494,1324.91,0.00030136,120]
[370018739,1751836315985,460.0,0.00030136,120]
[370018740,1751836316605,579.64,0.00030136,120]
[370018741,1751836316688,460.0,0.00030136,120]
[370018742,1751836317233,9250.3,0.00030136,120]
[370018743,1751836318194,800.97,0.00030136,120]
[370018744,1751836318243,552.62920444,0.00030136,120]
[370018745,1751836319823,733.49,0.00030136,120]
[370018746,1751836320829,460.0,0.00030136,120]
[370018747,1751836321416,460.0,0.00030136,120]
[370018748,1751836321568,460.0,0.00030136,120]
[370018749,1751836322500,1022.93,0.00030136,120]
[370018750,1751836323951,944.84,0.00030136,120]
[370018751,1751836324948,2582.66,0.00030136,120]
[370018752,1751836325037,1038.13,0.00030136,120]
[370018753,1751836325297,827.53,0.00030136,120]
[370018754,1751836325888,544.76,0.00030136,120]
[370018755,1751836326371,315.37983993,0.00030136,120]
[370018756,1751836327562,460.0,0.00030136,120]
[370018757,1751836328013,460.0,0.00030136,120]
[370018758,1751836330620,460.0,0.00030136,120]
[370018759,1751836333119,474.127169,0.00030136,120]
[370018760,1751836333278,490.0,0.00030136,120]
[370018761,1751836333439,460.0,0.00030136,120]
[370018762,1751836333986,2419.2,0.00030136,120]
[370018763,1751836334555,460.0,0.00030136,120]
[370018764,1751836334711,460.0,0.00030136,120]
[370018765,1751836334841,460.0,0.00030136,120]
[370018766,1751836334989,460.0,0.00030136,120]
[370018767,1751836336212,460.0,0.00030136,120]
[370018768,1751836337096,490.0,0.00030136,120]
[370018769,1751836337596,460.0,0.00030136,120]
[370018770,1751836337811,1749.97,0.00030136,120]
[370018771,1751836338420,460.0,0.00030136,120]
[370018772,1751836338866,490.0,0.00030136,120]
[370018774,1751836340335,460.0,0.00030136,120]
[370018775,1751836340693,480.41,0.00030136,120]
[370018776,1751836340940,460.0,0.00030136,120]
[370018777,1751836342251,817.39,0.00030136,120]
[370018778,1751836342802,460.0,0.00030136,120]
[370018779,1751836342856,1485.64,0.00030136,120]
[370018780,1751836343219,580.92,0.00030136,120]
[370018781,1751836343348,1326.99,0.00030136,120]
[370018782,1751836343504,460.0,0.00030136,120]
[370018783,1751836343885,490.0,0.00030136,120]
[370018784,1751836344167,770.94,0.00030136,120]
[370018785,1751836344523,2431.46,0.00030136,120]
[370018786,1751836344555,721.58,0.00030136,120]
[370018787,1751836344589,460.0,0.00030136,120]
[370018788,1751836345418,460.0,0.00030136,120]
[370018789,1751836345641,460.0,0.00030136,120]
[370018790,1751836346185,1027.14,0.00030136,120]
[370018791,1751836346990,8791.18,0.00030136,120]
[370018792,1751836348096,707.0,0.00030136,120]
[370018793,1751836348509,460.0,0.00030136,120]
[370018794,1751836348904,473.85,0.00030136,120]
[370018795,1751836350135,613.91,0.00030136,120]
[370018796,1751836352369,494.69,0.00030136,120]
[370018797,1751836352568,460.0,0.00030136,120]
[370018798,1751836353270,1021.73,0.00030136,120]
[370018799,1751836353618,1809.16,0.00030136,120]
[370018800,1751836354312,622.46,0.00030136,120]
[370018801,1751836354512,460.0,0.00030136,120]
[370018802,1751836355536,1261.32,0.00030136,120]
[370018803,1751836355584,631.72,0.00030136,120]
[370018804,1751836355841,743.6,0.00030136,120]
[370018805,1751836355887,2417.65,0.00030136,120]
[370018806,1751836355936,490.0,0.00030136,120]
[370018807,1751836356053,460.0,0.00030136,120]
[370018808,1751836356827,460.0,0.00030136,120]
[370018809,1751836357305,460.0,0.00030136,120]
[370018811,1751836360394,460.0,0.00030136,120]
[370018812,1751836361059,1481.2,0.00030136,120]
[370018813,1751836362355,460.0,0.00030136,120]
[370018814,1751836362628,460.0,0.00030136,120]
[370018815,1751836363084,759.65,0.00030136,120]
[370018816,1751836363374,555.18,0.00030136,120]
[370018817,1751836363469,1533.69,0.00030136,120]
[370018818,1751836363501,460.0,0.00030136,120]
[370018819,1751836363645,460.0,0.00030136,120]
[370018820,1751836364532,514.54,0.00030136,120]
[370018821,1751836364909,460.0,0.00030136,120]
[370018822,1751836365400,460.0,0.00030136,120]
[370018823,1751836365588,512.52,0.00030136,120]
[370018824,1751836366079,1166.86,0.00030136,120]
[370018825,1751836366194,499.53418915,0.00030136,120]
[370018826,1751836367249,686.63,0.00030136,120]
[370018827,1751836367516,1027.58,0.00030136,120]
[370018828,1751836368120,490.0,0.00030136,120]
[370018829,1751836368425,561.02,0.00030136,120]
[370018830,1751836368823,460.0,0.00030136,120]
[370018831,1751836369300,460.0,0.00030136,120]
[370018832,1751836370685,679.86,0.00030136,120]
[370018833,1751836371794,1108.31,0.00030136,120]
[370018834,1751836372583,2295.41,0.00030136,120]
[370018835,1751836373391,460.0,0.00030136,120]
[370018836,1751836373457,1821.61,0.00030136,120]
[370018837,1751836373541,460.0,0.00030136,120]
[370018838,1751836373588,586.53,0.00030136,120]
[370018839,1751836373732,460.0,0.00030136,120]
[370018840,1751836374776,1147.46,0.00030136,120]
[370018841,1751836375073,460.0,0.00030136,120]
[370018842,1751836375663,460.0,0.00030136,120]
[370018843,1751836375851,460.0,0.00030136,120]
[370018844,1751836376441,609.06,0.00030136,120]
[370018845,1751836376538,460.0,0.00030136,120]
[370018846,1751836377866,460.0,0.00030136,120]
[370018847,1751836378583,309.08145058,0.00030136,120]
[370018848,1751836379334,685.89,0.00030136,120]
[370018849,1751836379390,803.37,0.00030136,120]
[370018850,1751836379448,460.0,0.00030136,120]
[370018851,1751836379824,460.0,0.00030136,120]
[370018852,1751836380483,2032.17,0.00030136,120]
[370018853,1751836380938,4921.92,0.00030136,120]
[370018854,1751836381271,460.0,0.00030136,120]
[370018855,1751836381303,674.3,0.00030136,120]
[370018856,1751836381817,1250.27,0.00030136,120]
[370018857,1751836382245,460.0,0.00030136,120]
[370018858,1751836382513,460.0,0.00030136,120]
[370018859,1751836383357,460.0,0.00030136,120]
[370018860,1751836384981,460.0,0.00030136,120]
[370018861,1751836385959,2108.67,0.00030136,120]
[370018862,1751836386102,490.0,0.00030136,120]
[370018863,1751836386974,460.0,0.00030136,120]
[370018864,1751836388076,460.0,0.00030136,120]
[370018865,1751836388608,492.74903814,0.00030136,120]
[370018866,1751836389947,646.13,0.00030136,120]
[370018867,1751836391400,524.79,0.00030136,120]
[370018868,1751836391451,957.83,0.00030136,120]
[370018869,1751836392257,686.3,0.00030136,120]
[370018870,1751836392321,464.88,0.00030136,120]
[370018871,1751836392355,896.43,0.00030136,120]
[370018872,1751836393737,1488.98,0.00030136,120]
[370018873,1751836393790,460.0,0.00030136,120]
[370018874,1751836394105,807.88,0.00030136,120]
[370018875,1751836394435,460.0,0.00030136,120]
[370018876,1751836397007,460.0,0.00030136,120]
[370018877,1751836398042,541.18,0.00030136,120]
[370018878,1751836398142,3064.99,0.00030136,120]
[370018879,1751836399081,460.0,0.00030136,120]
[370018880,1751836399426,621.7,0.00030136,120]
[370018881,1751836400534,460.0,0.00030136,120]
[370018882,1751836401247,761.61,0.00030136,120]
[370018883,1751836402137,506.36,0.00030136,120]
[370018884,1751836402761,460.0,0.00030136,120]
[370018885,1751836402931,460.0,0.00030136,120]
[370018886,1751836403027,505.81,0.00030136,120]
[370018887,1751836403396,460.0,0.00030136,120]
[370018888,1751836403449,460.0,0.00030136,120]
[370018889,1751836404345,460.0,0.00030136,120]
[370018890,1751836405728,300.0,0.00030136,120]
[370018891,1751836406533,921.47,0.00030136,120]
[370018892,1751836407564,816.92,0.00030136,120]
[370018893,1751836407663,490.0,0.00030136,120]
[370018894,1751836407743,194.82224079,0.00030136,120]
[370018895,1751836408053,1324.32,0.00030136,120]
[370018896,1751836409780,460.0,0.00030136,120]
[370018897,1751836409862,460.0,0.00030136,120]
[370018898,1751836409897,471.3662623,0.00030136,120]
[370018899,1751836409956,460.0,0.00030136,120]
[370018900,1751836411350,460.0,0.00030136,120]
[370018901,1751836411380,460.0,0.00030136,120]
[370018902,1751836411478,465.83,0.00030136,120]
[370018903,1751836411672,460.0,0.00030136,120]
[370018904,1751836411712,460.0,0.00030136,120]
[370018905,1751836411741,543.94,0.00030136,120]
[370018906,1751836411854,460.0,0.00030136,120]
[370018907,1751836412128,491.88,0.00030136,120]
[370018908,1751836412718,460.0,0.00030136,120]
[370018909,1751836413230,766.2,0.00030136,120]
[370018910,1751836413282,460.0,0.00030136,120]
[370018911,1751836413494,460.0,0.00030136,120]
[370018912,1751836415524,460.0,0.00030136,120]
[370018913,1751836415590,480.48,0.00030136,120]
[370018914,1751836416189,460.0,0.00030136,120]
[370018915,1751836416224,601.54,0.00030136,120]
[370018916,1751836419455,624.92,0.00030136,120]
[370018917,1751836420338,460.0,0.00030136,120]
[370018918,1751836420886,1800.33,0.00030136,120]
[370018919,1751836420923,690.71,0.00030136,120]
[370018920,1751836421602,460.0,0.00030136,120]
[370018921,1751836421842,460.0,0.00030136,120]
[370018922,1751836422000,2159.87,0.00030136,120]
[370018923,1751836422763,460.0,0.00030136,120]
[370018924,1751836422822,460.0,0.00030136,120]
[370018926,1751836423633,460.0,0.00030136,120]
[370018927,1751836424501,778.55,0.00030136,120]
[370018928,1751836424534,460.0,0.00030136,120]
[370018929,1751836424574,460.0,0.00030136,120]
[370018930,1751836425386,460.0,0.00030136,120]
[370018931,1751836425470,460.0,0.00030136,120]
[370018932,1751836425857,653.26,0.00030136,120]
[370018933,1751836426725,460.0,0.00030136,120]
[370018934,1751836428260,460.0,0.00030136,120]
[370018935,1751836428401,460.0,0.00030136,120]
[370018936,1751836428692,532.77,0.00030136,120]
[370018937,1751836430409,460.0,0.00030136,120]
[370018938,1751836430604,945.1,0.00030136,120]
[370018939,1751836430820,1361.37,0.00030136,120]
[370018940,1751836431109,2942.92,0.00030136,120]
[370018941,1751836431142,1257.37,0.00030136,120]
[370018942,1751836432056,460.0,0.00030136,120]
[370018943,1751836432130,460.0,0.00030136,120]
[370018944,1751836432576,1183.83,0.00030136,120]
[370018945,1751836433466,1568.33,0.00030136,120]
[370018946,1751836434319,460.0,0.00030136,120]
[370018947,1751836434985,2236.77,0.00030136,120]
[370018948,1751836435632,490.0,0.00030136,120]
[370018949,1751836436022,530.67,0.00030136,120]
[370018950,1751836436154,517.07,0.00030136,120]
[370018951,1751836436335,592.15,0.00030136,120]
[370018952,1751836438254,460.0,0.00030136,120]
[370018953,1751836438502,479.91,0.00030136,120]
[370018954,1751836439199,460.0,0.00030136,120]
[370018955,1751836439829,460.0,0.00030136,120]
[370018956,1751836441249,732.37,0.00030136,120]
[370018957,1751836442431,652.41,0.00030136,120]
[370018958,1751836442660,490.0,0.00030136,120]
[370018959,1751836443108,498.2,0.00030136,120]
[370018960,1751836443894,1000.0,0.00030136,120]
[370018961,1751836445423,48777.84,0.00030136,120]
[370018962,1751836445599,551.44,0.00030136,120]
[370018963,1751836445633,891.03,0.00030136,120]
[370018964,1751836445900,460.0,0.00030136,120]
[370018965,1751836446006,460.0,0.00030136,120]
[370018966,1751836447159,479.0,0.00030136,120]
[370018967,1751836450459,1188.05,0.00030136,120]
[370018968,1751836451942,662.27,0.00030136,120]
[370018969,1751836452766,2561.01,0.00030136,120]
[370018970,1751836454348,2766.01,0.00030136,120]
[370018971,1751836454379,691.39,0.00030136,120]
[370018972,1751836454803,460.0,0.00030136,120]
[370018973,1751836455661,460.0,0.00030136,120]
[370018974,1751836455735,460.0,0.00030136,120]
[370018975,1751836457339,460.0,0.00030136,120]
[370018976,1751836457800,460.0,0.00030136,120]
[370018977,1751836457968,714.6,0.00030136,120]
[370018978,1751836458322,460.0,0.00030136,120]
[370018979,1751836458661,1101.64,0.00030136,120]
[370018980,1751836459579,460.0,0.00030136,120]
[370018981,1751836459665,650.61,0.00030136,120]
[370018982,1751836459944,667.87,0.00030136,120]
[370018983,1751836460310,465.08,0.00030136,120]
[370018984,1751836461304,460.0,0.00030136,120]
[370018985,1751836462688,600.23,0.00030136,120]
[370018986,1751836463922,500.0,0.00030136,120]
[370018987,1751836466015,460.0,0.00030136,120]
[370018988,1751836466914,870.35,0.00030136,120]
[370018989,1751836467153,515.19,0.00030136,120]
[370018990,1751836468202,1306.32,0.00030136,120]
[370018991,1751836469421,602.66,0.00030136,120]
[370018993,1751836469732,494.53,0.00030136,120]
[370018994,1751836469861,415.74040127,0.00030136,120]
[370018995,1751836470579,460.0,0.00030136,120]
[370018996,1751836471204,490.0,0.00030136,120]
[370018997,1751836472786,1214.8,0.00030136,120]
[370018998,1751836474035,460.0,0.00030136,120]
[370018999,1751836474326,1400.33,0.00030136,120]
[370019000,1751836474449,460.0,0.00030136,120]
[370019001,1751836476881,662.35,0.00030136,120]
[370019002,1751836479839,765.57,0.00030136,120]
[370019003,1751836481064,460.0,0.00030136,120]
[370019004,1751836481132,654.16,0.00030136,120]
[370019005,1751836481514,825.44,0.00030136,120]
[370019006,1751836482315,736.99,0.00030136,120]
[370019007,1751836483538,740.5,0.00030136,120]
[370019008,1751836484671,1183.98,0.00030136,120]
[370019009,1751836485088,533.75,0.00030136,120]
[370019010,1751836487175,485.58,0.00030136,120]
[370019011,1751836487281,460.0,0.00030136,120]
[370019012,1751836488254,653.95,0.00030136,120]
[370019013,1751836488775,460.0,0.00030136,120]
[370019014,1751836490214,7456.62,0.00030136,120]
[370019015,1751836491259,1532.79,0.00030136,120]
[370019016,1751836493232,1025.13,0.00030136,120]
[370019017,1751836493404,716.87,0.00030136,120]
[370019018,1751836493435,511.01,0.00030136,120]
[370019019,1751836495400,460.0,0.00030136,120]
[370019020,1751836495810,496.12,0.00030136,120]
[370019021,1751836497851,594.72,0.00030136,120]
[370019022,1751836498894,8864.87,0.00030136,120]
[370019023,1751836499477,582.82,0.00030136,120]
[370019024,1751836499830,460.0,0.00030136,120]
[370019025,1751836500012,460.0,0.00030136,120]
[370019026,1751836501534,725.86,0.00030136,120]
[370019027,1751836502061,490.740547,0.00030136,120]
[370019028,1751836502862,549.88,0.00030136,120]
[370019029,1751836504072,527.3960209,0.00030136,120]
[370019030,1751836504519,460.0,0.00030136,120]
[370019031,1751836504955,460.0,0.00030136,120]
[370019032,1751836506684,778.56,0.00030136,120]
[370019033,1751836507062,808.33,0.00030136,120]
[370019034,1751836507362,1114.0,0.00030136,120]
[370019035,1751836508335,1137.07,0.00030136,120]
[370019036,1751836509254,460.0,0.00030136,120]
[370019037,1751836510805,460.0,0.00030136,120]
[370019038,1751836511626,460.0,0.00030136,120]
[370019039,1751836514778,485.78,0.00030136,120]
[370019040,1751836515674,1216.19,0.00030136,120]
[370019041,1751836516064,460.0,0.00030136,120]
[370019042,1751836516510,1092.01,0.00030136,120]
[370019043,1751836517368,4027.87,0.00030136,120]
[370019044,1751836519379,460.0,0.00030136,120]
[370019045,1751836519712,1677.05,0.00030136,120]
[370019046,1751836520536,797.17,0.00030136,120]
[370019047,1751836521384,591.42,0.00030136,120]
[370019048,1751836521550,2297.6,0.00030136,120]
[370019049,1751836522363,460.0,0.00030136,120]
[370019050,1751836523871,460.0,0.00030136,120]
[370019051,1751836524442,683.92,0.00030136,120]
[370019052,1751836524520,320.39,0.00030136,120]
[370019053,1751836524909,460.0,0.00030136,120]
[370019054,1751836525634,783.68,0.00030136,120]
[370019055,1751836527749,460.0,0.00030136,120]
[370019056,1751836527842,1924.55,0.00030136,120]
[370019057,1751836527997,793.05,0.00030136,120]
[370019058,1751836528677,984.34,0.00030136,120]
[370019059,1751836529340,286.4675185,0.00030136,120]
[370019061,1751836531261,460.0,0.00030136,120]
[370019062,1751836531313,460.0,0.00030136,120]
[370019063,1751836532484,460.0,0.00030136,120]
[370019064,1751836534380,523.84,0.00030136,120]
[370019065,1751836536051,460.0,0.00030136,120]
[370019066,1751836536238,460.0,0.00030136,120]
[370019067,1751836537569,460.0,0.00030136,120]
[370019068,1751836537811,641.68,0.00030136,120]
[370019069,1751836538038,460.0,0.00030136,120]
[370019070,1751836540269,460.0,0.00030136,120]
[370019071,1751836541225,460.0,0.00030136,120]
[370019072,1751836542558,602.64,0.00030136,120]
[370019073,1751836543137,460.0,0.00030136,120]
[370019074,1751836543828,460.0,0.00030136,120]
[370019075,1751836544137,887.2,0.00030136,120]
[370019076,1751836544482,460.0,0.00030136,120]
[370019077,1751836545867,1419.49,0.00030136,120]
[370019078,1751836545898,1269.7,0.00030136,120]
[370019079,1751836548110,460.0,0.00030136,120]
[370019080,1751836548354,623.44,0.00030136,120]
[370019081,1751836549153,1015.34,0.00030136,120]
[370019082,1751836550394,460.0,0.00030136,120]
[370019083,1751836550544,460.0,0.00030136,120]
[370019084,1751836552346,1423.74,0.00030136,120]
[370019085,1751836552383,895.67,0.00030136,120]
[370019086,1751836552578,460.0,0.00030136,120]
[370019087,1751836554496,921.32,0.00030136,120]
[370019088,1751836555086,640.94,0.00030136,120]
[370019089,1751836555991,787.18,0.00030136,120]
[370019090,1751836557174,753.63,0.00030136,120]
[370019091,1751836557939,460.0,0.00030136,120]
[370019092,1751836560864,460.0,0.00030136,120]
[370019093,1751836560930,460.0,0.00030136,120]
[370019094,1751836561092,470.08,0.00030136,120]
[370019095,1751836562381,979.16,0.00030136,120]
[370019096,1751836562910,767.59,0.00030136,120]
[370019097,1751836563031,2318.4,0.00030136,120]
[370019098,1751836563363,1062.13,0.00030136,120]
[370019099,1751836567558,460.0,0.00030136,120]
[370019100,1751836568471,747.03,0.00030136,120]
[370019101,1751836568763,784.75,0.00030136,120]
[370019102,1751836571125,460.0,0.00030136,120]
[370019103,1751836571859,1270.1,0.00030136,120]
[370019104,1751836572603,763.88,0.00030136,120]
[370019105,1751836572814,1271.7,0.00030136,120]
[370019106,1751836573966,460.0,0.00030136,120]
[370019107,1751836575981,460.0,0.00030136,120]
[370019108,1751836577481,460.39,0.00030136,120]
[370019109,1751836579488,1005.96,0.00030136,120]
[370019110,1751836581807,527.72,0.00030136,120]
[370019111,1751836582710,460.0,0.00030136,120]
[370019112,1751836583077,1733.78,0.00030136,120]
[370019113,1751836584683,460.0,0.00030136,120]
[370019114,1751836585057,1745.71,0.00030136,120]
[370019115,1751836586729,460.0,0.00030136,120]
[370019116,1751836587772,460.0,0.00030136,120]